bitfinex-derivatives/quotes_BTCF0:USTF0_20241125
["timestamp","ask_amount","ask_price","bid_price","bid_amount"]
[1732546953766,0.3608,95760.0,95759.0,0.00053625]
[1732546953962,0.3608,95760.0,95759.0,0.05274225]
[1732546954167,0.360897,95760.0,95759.0,0.05274225]
[1732546954667,0.360897,95760.0,95759.0,0.00053625]
[1732546955673,0.360897,95760.0,95747.0,0.052213]
[1732546955674,0.974177,95760.0,95747.0,0.052213]
[1732546955873,0.3608,95748.0,95747.0,0.052213]
[1732546956074,0.3608,95748.0,95711.0,0.3608]
[1732546956075,0.3608,95748.0,95710.0,0.18468535]
[1732546956266,0.3608,95712.0,95711.0,0.052232]
[1732546956867,0.052234,95709.0,95672.0,0.28315081]
[1732546957068,0.6608,95712.0,95675.0,0.00011982]
[1732546957069,9.854e-05,95676.0,95675.0,0.00011982]
[1732546957270,0.36089854,95676.0,95675.0,0.00011982]
[1732546957568,0.36089854,95676.0,95634.0,0.43104976]
[1732546957569,0.97445854,95676.0,95655.0,0.30789268]
[1732546957882,0.97445854,95676.0,95638.0,0.36947122]
[1732546957883,0.7216,95656.0,95638.0,0.36947122]
[1732546958069,0.7216,95656.0,95630.0,1.09857511]
[1732546958070,0.052264,95654.0,95641.0,0.05227]
[1732546958273,0.31364,95655.0,95646.0,0.052267]
[1732546958564,0.31364,95655.0,95630.0,0.66752535]
[1732546958565,0.31364,95655.0,95654.0,0.0004]
[1732546958766,0.61364,95655.0,95630.0,0.48284]
[1732546958975,0.72320001,95656.0,95649.0,0.052266]
[1732546958976,0.3608,95650.0,95649.0,0.052266]
[1732546959178,0.305878,95673.0,95649.0,0.3608]
[1732546959379,0.36236001,95682.0,95675.0,0.052252]
[1732546959590,0.36236001,95682.0,95659.0,0.3608]
[1732546959591,0.31365854,95676.0,95655.0,0.00156804]
[1732546959769,0.052268,95646.0,95627.0,0.07318325]
[1732546960078,0.23694035,95670.0,95627.0,0.07318325]
[1732546960079,0.3608,95628.0,95627.0,0.0729915]
[1732546960264,0.3608,95628.0,95627.0,0.052278]
[1732546960676,9.854e-05,95676.0,95627.0,0.052278]
[1732546960677,0.3608,95651.0,95627.0,0.052278]
[1732546960868,0.3608,95651.0,95650.0,0.052266]
[1732546961069,0.3608,95651.0,95650.0,0.052666]
[1732546961269,0.00156875,95669.0,95668.0,0.052256]
[1732546961475,0.3608,95674.0,95673.0,0.052253]
[1732546961676,0.3608,95674.0,95668.0,0.052256]
[1732546961677,9.854e-05,95676.0,95675.0,0.052252]
[1732546961884,5.4e-07,95676.0,95675.0,0.413052]
[1732546962178,5.4e-07,95676.0,95675.0,0.366212]
[1732546962380,0.3608,95705.0,95704.0,0.052236]
[1732546962570,0.31348,95705.0,95676.0,0.77698]
[1732546962775,0.3608,95707.0,95678.0,0.05225]
[1732546962776,0.3608,95692.0,95678.0,0.05225]
[1732546962969,0.3608,95692.0,95691.0,0.052243]
[1732546963376,0.36092055,95692.0,95691.0,0.052243]
[1732546963896,0.00012055,95692.0,95691.0,0.052243]
[1732546965885,0.00012055,95692.0,95690.0,0.02092556]
[1732546966178,0.00012055,95692.0,95690.0,0.02069881]
[1732546966883,0.31352,95691.0,95686.0,0.00011099]
[1732546967184,0.3616,95687.0,95686.0,0.00011099]
[1732546968384,0.0008,95687.0,95686.0,0.00011099]
[1732546968572,0.3608,95721.0,95686.0,0.67443099]
[1732546968777,0.3608,95721.0,95697.0,0.3608]
[1732546968984,0.3608,95721.0,95699.0,0.3608]
[1732546969375,0.3608,95713.0,95691.0,0.30833025]
[1732546969578,0.00012441,95692.0,95686.0,0.00011099]
[1732546969779,0.00052441,95692.0,95686.0,0.00011099]
[1732546969985,0.3608,95689.0,95686.0,0.00011099]
[1732546970374,0.3608,95689.0,95688.0,0.02091879]
[1732546970982,0.3608,95689.0,95686.0,0.00011099]
[1732546970983,0.67432,95689.0,95686.0,0.00011099]
[1732546971284,0.0004,95687.0,95649.0,0.48308]
[1732546971485,0.3608,95652.0,95649.0,0.48308]
[1732546971682,0.0004,95650.0,95649.0,0.48308]
[1732546971883,0.0004,95650.0,95626.0,0.37909165]
[1732546972085,0.3612,95650.0,95640.0,9.868e-05]
[1732546972786,0.0004,95649.0,95640.0,9.868e-05]
[1732546973686,0.0004,95649.0,95647.0,0.02091879]
[1732546973888,0.3608,95650.0,95647.0,0.02091879]
[1732546974282,0.3608,95650.0,95640.0,9.868e-05]
[1732546974283,0.3608,95648.0,95640.0,9.868e-05]
[1732546974489,0.3608,95641.0,95640.0,9.868e-05]
[1732546975093,8.266e-05,95647.0,95630.0,0.61547428]
[1732546975397,8.266e-05,95647.0,95639.0,0.3608]
[1732546975598,8.266e-05,95647.0,95630.0,0.61547428]
[1732546975895,0.3608,95645.0,95630.0,0.61547428]
[1732546976193,8.266e-05,95647.0,95631.0,0.00011198]
[1732546976593,8.266e-05,95647.0,95646.0,0.0004]
[1732546976797,0.41304966,95647.0,95646.0,0.0004]
[1732546977003,0.36078266,95647.0,95646.0,0.0004]
[1732546977889,0.36086059,95647.0,95646.0,0.0004]
[1732546978091,0.36086059,95647.0,95631.0,0.27896937]
[1732546978394,0.36086059,95647.0,95630.0,0.18468535]
[1732546978395,0.3608,95633.0,95606.0,0.00156872]
[1732546978597,0.3608,95622.0,95606.0,0.00156872]
[1732546978991,0.3608,95613.0,95606.0,0.00156872]
[1732546979191,0.3608,95622.0,95607.0,7.705e-05]
[1732546979399,0.3608,95622.0,95612.0,0.02092714]
[1732546979693,0.3608,95624.0,95621.0,0.0004]
[1732546980096,0.3608,95624.0,95612.0,0.02092714]
[1732546980097,0.3608,95637.0,95623.0,0.0004]
[1732546980399,0.3608,95637.0,95636.0,0.0004]
[1732546980605,0.3608,95637.0,95636.0,0.48368]
[1732546981099,0.3608,95637.0,95636.0,0.43121025]
[1732546981494,7.793e-05,95647.0,95636.0,0.43121025]
[1732546981800,0.05234493,95647.0,95646.0,0.0004]
[1732546981999,7.793e-05,95647.0,95646.0,0.0004]
[1732546982892,0.36087793,95647.0,95646.0,0.0004]
[1732546983296,0.67451793,95647.0,95646.0,0.0004]
[1732546983497,0.36087793,95647.0,95646.0,0.0004]
[1732546983699,0.36087793,95647.0,95646.0,0.31404]
[1732546983700,7.793e-05,95647.0,95646.0,0.31404]
[1732546983887,0.00047,95661.0,95646.0,0.33236667]
[1732546984089,0.3608,95660.0,95646.0,0.01872667]
[1732546984288,0.3608,95660.0,95647.0,0.48328]
[1732546984689,0.3608,95650.0,95646.0,0.02093582]
[1732546984895,0.3608,95647.0,95646.0,0.02093582]
[1732546985207,0.36199999,95647.0,95646.0,0.02093582]
[1732546985893,0.36199999,95647.0,95610.0,0.18468535]
[1732546986092,0.36199999,95647.0,95638.0,0.02093582]
[1732546986093,0.3608,95639.0,95638.0,0.02093582]
[1732546986289,0.7216,95639.0,95638.0,0.02093582]
[1732546986503,0.7216,95639.0,95638.0,0.33461582]
[1732546986801,0.00047,95661.0,95639.0,0.31364]
[1732546987006,0.00047,95661.0,95653.0,0.3608]
[1732546987205,0.0004,95692.0,95653.0,0.60873025]
[1732546987500,0.0004,95692.0,95671.0,0.0004]
[1732546987706,0.3612,95692.0,95671.0,0.0004]
[1732546987907,0.3612,95692.0,95658.0,0.24833057]
[1732546987908,0.3608,95674.0,95672.0,0.0033913]
[1732546988203,0.67436,95673.0,95645.0,0.61780179]
[1732546988392,0.3608,95658.0,95643.0,0.84412]
[1732546988598,0.052258,95665.0,95643.0,0.48332]
[1732546988792,0.3608,95673.0,95653.0,0.02093582]
[1732546989103,0.3608,95665.0,95664.0,0.0004]
[1732546989804,0.3608,95675.0,95664.0,0.0004]
[1732546990202,0.3608,95675.0,95655.0,0.30913025]
[1732546990501,0.0028,95656.0,95655.0,0.01798576]
[1732546990704,0.3608,95675.0,95655.0,0.61364]
[1732546991000,0.0004,95692.0,95674.0,0.3612]
[1732546991202,0.0004,95692.0,95675.0,0.48332]
[1732546991405,0.0004,95692.0,95691.0,0.0004]
[1732546991805,0.0004,95692.0,95675.0,0.48332]
[1732546991806,0.67472,95692.0,95675.0,0.48332]
[1732546992104,0.0004,95676.0,95675.0,0.48332]
[1732546992304,0.0004,95676.0,95675.0,0.50191126]
[1732546993393,0.0004,95676.0,95675.0,0.44944151]
[1732546993596,0.0004,95676.0,95675.0,1.12380151]
[1732546993798,0.0004,95676.0,95675.0,0.81024151]
[1732546993997,0.0004,95676.0,95675.0,0.76300151]
[1732546994199,0.0004,95676.0,95675.0,0.44944151]
[1732546994803,0.052256,95669.0,95645.0,0.48324]
[1732546995004,0.3608,95667.0,95645.0,0.48324]
[1732546995204,0.0004,95655.0,95650.0,0.18468535]
[1732546995507,0.0004,95655.0,95651.0,0.01810052]
[1732546995708,0.0004,95655.0,95640.0,0.3608]
[1732546995709,0.0004,95655.0,95630.0,0.18468535]
[1732546996007,0.31413639,95655.0,95635.0,0.02092202]
[1732546996195,0.61413639,95655.0,95623.0,0.48324]
[1732546996396,0.3608,95649.0,95623.0,0.43300562]
[1732546996596,0.0004,95645.0,95623.0,0.45114091]
[1732546996801,0.3608,95649.0,95632.0,0.02092202]
[1732546997208,0.3608,95649.0,95648.0,0.0004]
[1732546997602,9.639e-05,95655.0,95648.0,0.0004]
[1732546997799,9.639e-05,95655.0,95648.0,0.3612]
[1732546998000,0.02092202,95683.0,95654.0,0.0004]
[1732546998209,0.00156861,95687.0,95654.0,0.0004]
[1732546998412,0.1793516,95715.0,95654.0,0.0004]
[1732546998413,0.1793516,95721.0,95686.0,0.3608]
[1732546998596,0.052233,95711.0,95710.0,0.3608]
[1732546998799,0.3191,95720.0,95710.0,0.3608]
[1732546999105,0.1793516,95736.0,95710.0,0.6608]
[1732546999106,8.578e-05,95719.0,95710.0,0.6608]
[1732546999298,8.578e-05,95719.0,95718.0,0.30833025]
[1732546999498,8.578e-05,95719.0,95718.0,0.79157025]
[1732546999702,0.1793516,95749.0,95718.0,1.09157025]
[1732546999904,0.352212,95749.0,95738.0,0.3608]
[1732547000113,0.052221,95731.0,95730.0,0.3608]
[1732547000299,0.31336,95731.0,95715.0,0.3608]
[1732547000506,0.6042,95730.0,95715.0,0.3608]
[1732547000706,0.052229,95718.0,95715.0,0.3608]
[1732547001009,9.975e-05,95729.0,95715.0,0.3608]
[1732547001208,9.975e-05,95729.0,95724.0,0.3608]
[1732547001400,9.975e-05,95729.0,95727.0,0.3608]
[1732547001600,9.975e-05,95729.0,95724.0,0.3608]
[1732547001812,0.0004,95731.0,95724.0,0.6608]
[1732547002005,0.2908,95780.0,95730.0,0.3608]
[1732547002202,0.2908,95780.0,95759.0,0.18468535]
[1732547002403,0.2908,95780.0,95763.0,0.3608]
[1732547002604,0.31328,95768.0,95744.0,0.3608]
[1732547002913,0.0004,95745.0,95744.0,0.3608]
[1732547003205,0.052217,95740.0,95739.0,0.00013302]
[1732547003410,0.31336,95740.0,95739.0,0.00013302]
[1732547003610,0.0004,95740.0,95739.0,0.36093302]
[1732547004410,0.0004,95740.0,95739.0,0.96789302]
[1732547004610,9.261e-05,95754.0,95739.0,0.96789302]
[1732547004910,9.261e-05,95754.0,95753.0,0.36160001]
[1732547005302,9.261e-05,95754.0,95753.0,0.66160001]
[1732547005509,0.3608,95783.0,95753.0,0.92245026]
[1732547005708,0.00156001,95794.0,95773.0,0.18468535]
[1732547005907,0.00156001,95794.0,95769.0,0.3608]
[1732547005908,0.052188,95792.0,95782.0,0.00080001]
[1732547006207,0.00152,95815.0,95793.0,0.00080001]
[1732547006409,0.00156653,95817.0,95799.0,0.3608]
[1732547006724,0.00156653,95817.0,95799.0,0.66171252]
[1732547006725,8.303e-05,95808.0,95799.0,0.66171252]
[1732547007007,0.2996,95838.0,95799.0,0.36171252]
[1732547007199,0.31790001,95839.0,95820.0,0.18468535]
[1732547007398,0.3163,95839.0,95837.0,0.00080001]
[1732547007713,0.3163,95839.0,95820.0,0.18468535]
[1732547007714,0.6163,95839.0,95838.0,0.00080001]
[1732547008007,0.052162,95840.0,95838.0,0.00080001]
[1732547008210,0.3131329,95839.0,95838.0,0.00080001]
[1732547008413,0.052175,95817.0,95800.0,0.49313112]
[1732547008599,0.3131329,95839.0,95800.0,0.49313112]
[1732547008600,0.3608,95826.0,95811.0,0.3608]
[1732547008803,0.00156001,95838.0,95811.0,0.66071697]
[1732547009000,0.052172,95822.0,95811.0,0.66071697]
[1732547009208,0.052177,95812.0,95811.0,0.29991697]
[1732547009402,0.052177,95812.0,95799.0,0.00011251]
[1732547009403,0.052182,95804.0,95799.0,0.00011251]
[1732547009599,0.3608,95824.0,95799.0,0.30002948]
[1732547009600,0.05218,95807.0,95799.0,0.30002948]
[1732547009810,0.052183,95801.0,95799.0,0.00011251]
[1732547010011,0.31316,95800.0,95799.0,0.00011251]
[1732547010908,0.61316,95800.0,95799.0,0.00011251]
[1732547011209,0.61316,95800.0,95799.0,0.29991697]
[1732547011210,0.31316,95800.0,95799.0,0.29991697]
[1732547011600,0.31316,95800.0,95799.0,0.24744722]
[1732547011800,0.052183,95802.0,95799.0,0.24744722]
[1732547012000,0.3608,95816.0,95799.0,0.24744722]
[1732547012001,0.052181,95807.0,95799.0,0.24744722]
[1732547012202,0.6608,95816.0,95803.0,0.3608]
[1732547012508,0.052181,95805.0,95803.0,0.24744722]
[1732547012704,0.2925,95815.0,95789.0,0.00012543]
[1732547012705,0.052189,95791.0,95789.0,0.00012543]
[1732547012905,0.00012571,95790.0,95789.0,0.00012543]
[1732547013112,0.00012571,95790.0,95771.0,0.00156612]
[1732547013113,0.31372571,95790.0,95779.0,0.3608]
[1732547013312,0.00052571,95790.0,95783.0,0.3608]
[1732547013518,0.052198,95775.0,95771.0,0.24901334]
[1732547013707,0.0004,95780.0,95771.0,0.24901334]
[1732547013908,0.0004,95772.0,95771.0,0.00156612]
[1732547014113,0.0004,95772.0,95765.0,0.00011633]
[1732547014312,0.0004,95772.0,95730.0,0.18508535]
[1732547014313,0.31324,95771.0,95730.0,0.0004]
[1732547014618,0.6612,95772.0,95726.0,0.02089714]
[1732547014619,0.052224,95727.0,95726.0,0.02089714]
[1732547014815,0.052224,95727.0,95711.0,0.30676]
[1732547014816,0.052228,95719.0,95711.0,0.30676]
[1732547015117,0.0004,95727.0,95710.0,0.3608]
[1732547015314,0.052228,95720.0,95708.0,0.3608]
[1732547015504,0.00012472,95726.0,95708.0,0.3608]
[1732547015816,0.0004,95709.0,95701.0,0.00156744]
[1732547016022,0.0004,95709.0,95707.0,0.3608]
[1732547016205,0.30012472,95726.0,95707.0,0.3608]
[1732547016206,0.00012472,95726.0,95707.0,0.3608]
[1732547016519,0.00012472,95726.0,95701.0,0.00156744]
[1732547016520,0.30012472,95726.0,95701.0,0.00156744]
[1732547016708,0.3608,95720.0,95701.0,0.24901466]
[1732547016908,0.0004,95702.0,95701.0,0.00156744]
[1732547017114,0.0004,95702.0,95701.0,0.24901466]
[1732547017512,0.0004,95702.0,95701.0,0.60981466]
[1732547017715,0.0004,95702.0,95701.0,0.55734491]
[1732547017924,0.0004,95702.0,95701.0,0.87082491]
[1732547018111,0.0004,95702.0,95701.0,0.55734491]
[1732547018416,0.0004,95702.0,95701.0,0.6676]
[1732547018809,0.0004,95702.0,95700.0,0.1]
[1732547018810,0.31388,95702.0,95700.0,0.1]
[1732547019010,0.365718,95701.0,95700.0,0.1]
[1732547019210,0.366118,95701.0,95700.0,0.1]
[1732547019410,0.052239,95699.0,95681.0,0.00156758]
[1732547019612,0.052248,95682.0,95681.0,0.00156758]
[1732547019816,0.052248,95682.0,95630.0,0.18468535]
[1732547019817,0.052255,95670.0,95669.0,0.02091633]
[1732547020114,0.052655,95670.0,95669.0,0.02091633]
[1732547020322,0.052655,95670.0,95657.0,0.3608]
[1732547020323,0.052261,95659.0,95657.0,0.3608]
[1732547020507,0.052261,95659.0,95649.0,0.00156828]
[1732547020508,0.052263,95656.0,95649.0,0.00156828]
[1732547020709,0.3608,95664.0,95628.0,0.3608]
[1732547020710,0.0004,95658.0,95628.0,0.3608]
[1732547020909,0.0004,95658.0,95628.0,0.203767]
[1732547020910,0.3608,95651.0,95628.0,0.203767]
[1732547021121,0.3608,95651.0,95562.0,0.01572]
[1732547021122,0.052279,95627.0,95586.0,0.02091633]
[1732547021311,0.3608,95607.0,95586.0,0.38171633]
[1732547021513,0.0004,95601.0,95586.0,0.38171633]
[1732547021818,0.00053004,95601.0,95597.0,9.72e-05]
[1732547022120,0.61433004,95601.0,95597.0,9.72e-05]
[1732547022608,0.00053004,95601.0,95597.0,9.72e-05]
[1732547023625,0.00053004,95601.0,95600.0,0.43833025]
[1732547023817,0.00053004,95601.0,95600.0,0.63487516]
[1732547024117,0.3608,95621.0,95600.0,0.63487516]
[1732547024312,0.05228,95624.0,95619.0,0.3608]
[1732547024513,0.3608,95645.0,95622.0,0.3608]
[1732547024725,0.05227,95642.0,95633.0,0.3608]
[1732547024917,0.3,95651.0,95644.0,0.0008]
[1732547025118,0.00012402,95650.0,95644.0,0.0008]
[1732547025424,0.31376402,95650.0,95644.0,0.0008]
[1732547025623,0.31364,95649.0,95644.0,0.0008]
[1732547025826,0.052268,95645.0,95644.0,0.0008]
[1732547026127,0.00012402,95650.0,95644.0,0.0008]
[1732547026128,0.31364,95648.0,95644.0,0.0008]
[1732547026428,0.00012402,95650.0,95644.0,0.0008]
[1732547026718,0.00012402,95650.0,95649.0,0.0008]
[1732547028220,0.00012402,95650.0,95649.0,0.19734491]
[1732547028414,0.052248,95682.0,95649.0,0.51098491]
[1732547028610,0.3608,95708.0,95667.0,0.3608]
[1732547028813,0.3608,95699.0,95667.0,1.34102491]
[1732547029010,0.052245,95688.0,95683.0,0.3608]
[1732547029224,0.6608,95708.0,95683.0,0.3608]
[1732547029421,0.052238,95701.0,95683.0,0.55734491]
[1732547029723,0.052242,95694.0,95692.0,0.3608]
[1732547029923,0.00011674,95707.0,95692.0,0.3608]
[1732547030130,0.00011674,95707.0,95701.0,0.3608]
[1732547030428,0.36583174,95707.0,95706.0,0.0008]
[1732547030615,0.00011674,95707.0,95706.0,0.0008]
[1732547031418,0.36579174,95707.0,95706.0,0.0008]
[1732547031813,0.05235174,95707.0,95706.0,0.0008]
[1732547032113,0.36579174,95707.0,95706.0,0.0008]
[1732547032726,0.36579174,95707.0,95595.0,0.3068129]
[1732547032727,0.052251,95677.0,95661.0,0.48324]
[1732547032916,0.052248,95682.0,95667.0,0.3608]
[1732547033120,0.052249,95680.0,95667.0,0.3608]
[1732547033321,0.3608,95690.0,95667.0,0.3608]
[1732547033715,0.6608,95690.0,95676.0,0.3608]
[1732547034022,0.00156855,95697.0,95676.0,0.3608]
[1732547034415,0.05380855,95697.0,95696.0,0.0004]
[1732547034613,0.35380855,95697.0,95696.0,0.0004]
[1732547034925,0.00156855,95697.0,95696.0,0.0004]
[1732547035828,0.00156855,95697.0,95696.0,0.14447516]
[1732547036527,0.00156855,95697.0,95693.0,0.48324]
[1732547036915,0.00156855,95697.0,95694.0,0.29956]
[1732547037724,0.00156855,95697.0,95694.0,0.44403516]
[1732547038723,0.00156855,95697.0,95693.0,0.48324]
[1732547038915,0.052242,95694.0,95693.0,0.43077025]
[1732547039124,0.052642,95694.0,95693.0,0.43077025]
[1732547039323,0.0004,95694.0,95693.0,0.43077025]
[1732547039618,0.0004,95694.0,95693.0,0.79157025]
[1732547039922,0.0004,95694.0,95693.0,0.43077025]
[1732547040323,0.0004,95694.0,95693.0,0.57524541]
[1732547040527,0.0004,95694.0,95693.0,0.43077025]
[1732547041229,0.0004,95694.0,95688.0,0.3608]
[1732547041230,0.31392,95694.0,95688.0,0.3608]
[1732547041422,0.0004,95694.0,95688.0,0.3608]
[1732547041733,0.052644,95689.0,95688.0,0.3608]
[1732547041917,0.0004,95689.0,95679.0,0.3608]
[1732547042229,0.0004,95680.0,95679.0,0.3608]
[1732547043124,0.0004,95680.0,95679.0,0.81883516]
[1732547043325,0.00156855,95697.0,95679.0,0.81883516]
[1732547043526,0.00156855,95697.0,95694.0,0.3608]
[1732547043720,0.00156855,95697.0,95696.0,0.0004]
[1732547043926,0.02092076,95731.0,95696.0,0.29992]
[1732547044118,0.052228,95719.0,95706.0,0.3608]
[1732547044323,0.284416,95742.0,95706.0,0.8444]
[1732547044324,0.05379241,95726.0,95706.0,0.8444]
[1732547044530,0.05379241,95726.0,95706.0,0.98887516]
[1732547044727,0.00156841,95726.0,95706.0,0.14487516]
[1732547044923,0.3608,95716.0,95695.0,0.4832]
[1732547045228,0.3608,95716.0,95673.0,0.18560869]
[1732547045229,0.052255,95669.0,95653.0,0.18560869]
[1732547045426,0.052259,95663.0,95651.0,0.02092014]
[1732547045630,0.3608,95652.0,95640.0,0.02092014]
[1732547045925,0.3608,95652.0,95639.0,0.3608]
[1732547045926,0.0004,95645.0,95644.0,0.14527516]
[1732547046229,0.0004,95645.0,95644.0,0.0008]
[1732547046436,0.31418283,95645.0,95644.0,0.0008]
[1732547046932,0.36645083,95645.0,95644.0,0.0008]
[1732547047729,0.052275,95633.0,95609.0,0.02092014]
[1732547047935,0.052288,95610.0,95600.0,0.04598064]
[1732547048227,0.41429199,95601.0,95600.0,0.04598064]
[1732547048434,0.41429199,95601.0,95575.0,0.02092014]
[1732547048435,0.052306,95577.0,95575.0,0.02092014]
[1732547048733,0.052294,95599.0,95556.0,0.00012345]
[1732547048734,0.052307,95575.0,95556.0,0.00012345]
[1732547048920,0.052307,95575.0,95556.0,1e-08]
[1732547048921,0.413117,95557.0,95556.0,1e-08]
[1732547049123,0.41431699,95557.0,95556.0,1e-08]
[1732547049433,0.41431699,95557.0,95515.0,0.29968]
[1732547049434,0.05234,95514.0,95501.0,0.24545032]
[1732547049619,0.7216,95502.0,95501.0,0.24545032]
[1732547049929,0.7216,95502.0,95500.0,5.28560869]
[1732547049930,0.56565789,95502.0,95500.0,5.1]
[1732547050130,0.56565789,95502.0,95500.0,5.24447516]
[1732547050131,0.00119999,95502.0,95500.0,5.24447516]
[1732547050433,0.00132979,95501.0,95500.0,5.24459522]
[1732547050727,0.3608,95541.0,95500.0,5.24459522]
[1732547050728,0.3608,95541.0,95500.0,5.77504006]
[1732547050924,0.54548535,95570.0,95530.0,0.3608]
[1732547051124,0.3608,95558.0,95540.0,0.0004]
[1732547051325,0.3608,95558.0,95540.0,0.14487516]
[1732547051530,8.049e-05,95546.0,95540.0,0.0004]
[1732547051827,0.052325,95542.0,95540.0,0.0004]
[1732547052034,0.37092693,95541.0,95540.0,0.0004]
[1732547052228,0.052334,95525.0,95513.0,0.48352]
[1732547052423,0.052329,95536.0,95513.0,0.62799516]
[1732547052623,0.413131,95531.0,95513.0,0.62799516]
[1732547052833,0.3608,95541.0,95513.0,0.62799516]
[1732547053130,0.052313,95563.0,95540.0,0.3608]
[1732547053331,0.3608,95581.0,95561.0,0.3608]
[1732547053633,0.052311,95568.0,95562.0,0.0004]
[1732547053826,0.3608,95581.0,95562.0,0.0004]
[1732547053827,0.052307,95574.0,95562.0,0.0004]
[1732547054135,0.052309,95572.0,95561.0,0.30873025]
[1732547054429,0.0001271,95573.0,95569.0,0.3608]
[1732547054839,0.05231,95569.0,95568.0,0.00012171]
[1732547055137,0.05311001,95569.0,95568.0,0.00012171]
[1732547055429,0.00080001,95569.0,95543.0,0.26092171]
[1732547055639,0.052321,95549.0,95533.0,0.6606]
[1732547055936,0.00080001,95534.0,95533.0,0.80507516]
[1732547056130,0.00080001,95534.0,95533.0,0.6606]
[1732547056438,0.00080001,95534.0,95533.0,0.80507516]
[1732547057127,0.00080001,95534.0,95504.0,0.38409093]
[1732547057128,0.05233,95533.0,95504.0,0.38409093]
[1732547057328,0.052316,95559.0,95532.0,0.3608]
[1732547057528,0.052316,95559.0,95515.0,0.78648]
[1732547057529,0.3608,95543.0,95515.0,0.78648]
[1732547057726,0.3608,95526.0,95515.0,0.14447516]
[1732547057928,0.6608,95543.0,95491.0,0.3608]
[1732547057929,0.3608,95516.0,95491.0,0.3608]
[1732547058129,0.00010728,95515.0,95507.0,7.769e-05]
[1732547058435,0.052347,95501.0,95500.0,5.00795769]
[1732547058734,0.413147,95501.0,95500.0,3.42821439]
[1732547058933,1.027267,95501.0,95500.0,1.99633339]
[1732547059137,1.027267,95501.0,95500.0,1.9e-07]
[1732547059340,0.3608,95472.0,95421.0,0.18465205]
[1732547059528,9.064e-05,95427.0,95424.0,0.0001313]
[1732547059841,9.064e-05,95427.0,95426.0,0.62824]
[1732547060034,9.064e-05,95427.0,95424.0,0.0001313]
[1732547060342,9.064e-05,95427.0,95426.0,0.62824]
[1732547060531,0.3608,95486.0,95457.0,0.6266673]
[1732547060729,0.3608,95486.0,95460.0,0.3608]
[1732547060928,0.3608,95486.0,95485.0,0.0004]
[1732547061233,0.413155,95486.0,95485.0,0.0004]
[1732547061538,0.0001074,95485.0,95440.0,0.00013141]
[1732547061835,0.41358,95441.0,95440.0,0.00013141]
[1732547062242,0.05278,95441.0,95440.0,0.00013141]
[1732547062940,0.0004,95441.0,95440.0,0.00013141]
[1732547063133,0.0004,95441.0,95428.0,0.45284618]
[1732547063440,0.3608,95454.0,95428.0,0.45284618]
[1732547063441,0.3608,95454.0,95440.0,0.6266673]
[1732547063641,0.3608,95454.0,95453.0,0.6266673]
[1732547063834,0.00157256,95461.0,95453.0,0.6270673]
[1732547064140,0.02097551,95474.0,95453.0,0.6270673]
[1732547064141,0.3608,95480.0,95460.0,0.6270673]
[1732547064343,0.00157252,95492.0,95484.0,0.6266673]
[1732547064534,0.00157252,95492.0,95479.0,0.3608]
[1732547064535,0.052357,95483.0,95481.0,0.31096]
[1732547064837,0.0004,95482.0,95479.0,0.6266673]
[1732547065236,0.3608,95489.0,95479.0,0.6266673]
[1732547065237,0.0004,95480.0,95479.0,0.6266673]
[1732547065437,0.00011626,95488.0,95479.0,1.13185182]
[1732547065743,0.00011626,95488.0,95483.0,0.3608]
[1732547065938,0.00011626,95488.0,95487.0,0.6266673]
[1732547066139,0.3608,95499.0,95491.0,0.60164035]
[1732547066341,0.3608,95518.0,95498.0,0.60164035]
[1732547066538,0.3608,95518.0,95503.0,0.3608]
[1732547066736,0.00157146,95519.0,95508.0,0.60164035]
[1732547066938,0.052342,95510.0,95508.0,0.60164035]
[1732547067137,0.052345,95505.0,95501.0,0.3608]
[1732547067337,0.00010834,95509.0,95508.0,0.60164035]
[1732547067747,0.00010834,95509.0,95508.0,0.60204035]
[1732547068041,0.00010834,95509.0,95508.0,0.0004]
[1732547068042,0.05245134,95509.0,95508.0,0.0004]
[1732547068232,0.00010834,95509.0,95508.0,0.0004]
[1732547068544,0.00010834,95509.0,95508.0,0.96284035]
[1732547068737,0.00010834,95509.0,95508.0,0.3612]
[1732547069342,0.05245134,95509.0,95508.0,0.3612]
[1732547069747,0.05245134,95509.0,95508.0,0.0004]
[1732547069931,0.00010834,95509.0,95508.0,0.74642487]
[1732547070638,0.00010834,95509.0,95508.0,0.0004]
[1732547072035,0.00010834,95509.0,95508.0,0.60204035]
[1732547072237,0.00010834,95509.0,95508.0,0.0004]
[1732547072744,0.05245134,95509.0,95508.0,0.0004]
[1732547073242,0.00010834,95509.0,95508.0,1.10722487]
[1732547073650,0.00010834,95509.0,95508.0,0.96284035]
[1732547073847,0.00010834,95509.0,95508.0,0.3612]
[1732547074039,0.05245134,95509.0,95508.0,0.0004]
[1732547075050,0.00010834,95509.0,95508.0,0.0004]
[1732547075646,0.00010834,95509.0,95508.0,0.96284035]
[1732547075845,0.00010834,95509.0,95508.0,0.60204035]
[1732547076852,0.00010834,95509.0,95508.0,0.0004]
[1732547077655,0.00010834,95509.0,95508.0,0.74642487]
[1732547077857,0.05245134,95509.0,95508.0,0.60204035]
[1732547078740,0.00010834,95509.0,95508.0,0.60204035]
[1732547078943,0.00010834,95509.0,95508.0,0.0004]
[1732547079754,0.00010834,95509.0,95508.0,0.60204035]
[1732547080143,0.05245134,95509.0,95508.0,0.60204035]
[1732547080851,0.05245134,95509.0,95508.0,0.0004]
[1732547081345,0.41325134,95509.0,95508.0,0.0004]
[1732547081550,0.05245134,95509.0,95508.0,0.0004]
[1732547081752,0.05245134,95509.0,95508.0,1e-06]
[1732547082143,0.00010834,95509.0,95508.0,0.60164135]
[1732547082339,0.48408,95551.0,95508.0,0.74602587]
[1732547082546,0.052332,95528.0,95527.0,0.3608]
[1732547083048,0.3608,95558.0,95527.0,1.10682487]
[1732547083049,0.09944,95529.0,95527.0,1.10682487]
[1732547083251,0.09952982,95529.0,95528.0,0.18465205]
[1732547083449,0.09952982,95529.0,95528.0,0.7863838]
[1732547083644,0.09952982,95529.0,95528.0,1.29410599]
[1732547083847,0.09952982,95529.0,95528.0,0.96253175]
[1732547084047,0.09952982,95529.0,95528.0,1.10691627]
[1732547084251,0.052311,95567.0,95528.0,1.10691627]
[1732547084252,0.052323,95545.0,95528.0,1.10691627]